lending/lending_fUSD_20260209
["ID","MTS","AMOUNT","RATE_DAILY","PERIOD"]
[404847491,1770618646374,-8098.98478973,0.00042886,2]
[404847492,1770618646383,-259.57383222,0.000429,30]
[404847493,1770618646393,-1079.4,0.00042957,120]
[404847494,1770618646403,-150.0,0.00042973,30]
[404847495,1770618646412,-150.0,0.00042973,30]
[404847496,1770618646421,-4544.79,0.0004298,120]
[404847497,1770618646432,-500.0,0.00042986,120]
[404847498,1770618646442,-278.9473497,0.00042986,120]
[404847499,1770618646451,-456.1643411,0.00042998,30]
[404847500,1770618646461,-240.75130676,0.00043,120]
[404847501,1770618646471,-48974.83269297,0.00043,2]
[404847502,1770618646480,-162.46228869,0.00043,30]
[404847503,1770618646490,-695.18135714,0.00043,120]
[404847504,1770618646499,-156.529385,0.00043,120]
[404847506,1770618646510,-1000.0,0.00043014,30]
[404847507,1770618646519,-2186.02931871,0.00043025,2]
[404847508,1770618646529,-150.0,0.00043032,30]
[404847509,1770618646539,-300.0,0.00043041,30]
[404847510,1770618646549,-666.0,0.00043041,30]
[404847511,1770618646559,-300.0,0.00043041,30]
[404847512,1770618646569,-666.0,0.00043041,30]
[404847513,1770618646579,-39231.0,0.00043042,30]
[404847514,1770618646589,-222.0,0.00043097,2]
[404847515,1770618646599,-1405.99823324,0.000431,120]
[404847516,1770618646609,-280.0,0.00043119,15]
[404847517,1770618646619,-150.0,0.00043121,30]
[404847518,1770618646628,-150.0,0.00043121,30]
[404847519,1770618646638,-500.0,0.00043123,120]
[404847520,1770618646647,-828.0,0.00043128,16]
[404847521,1770618646657,-1521.40464906,0.0004313,30]
[404847522,1770618646667,-1079.4,0.0004315,120]
[404847523,1770618646676,-182.58608521,0.00043151,30]
[404847524,1770618646685,-221.0,0.00043178,2]
[404847525,1770618646695,-1033.7075099,0.000432,120]
[404847526,1770618646705,-282.9,0.000432,120]
[404847527,1770618646714,-3000.0,0.000432,7]
[404847528,1770618646724,-8419.51515041,0.0004321,120]
[404847529,1770618646733,-150.0,0.0004321,30]
[404847530,1770618646742,-756.862972,0.00043221,30]
[404847531,1770618646752,-558.5583305,0.0004326,120]
[404847532,1770618646760,-398.53,0.00043277,2]
[404847533,1770618646769,-1999.0,0.00043288,30]
[404847534,1770618646779,-3500.0,0.00043288,10]
[404847535,1770618646791,-1079.4,0.00043343,120]
[404847536,1770618646800,-150.0,0.00043344,30]
[404847537,1770618646810,-150.0,0.00043344,30]
[404847538,1770618646820,-150.0,0.00043388,30]
[404847539,1770618646829,-300.0,0.000434,30]
[404847540,1770618646838,-666.0,0.000434,30]
[404847541,1770618646847,-300.0,0.000434,30]
[404847542,1770618646856,-669.33451182,0.000434,120]
[404847543,1770618646866,-154.0,0.000434,120]
[404847544,1770618646875,-596.46,0.000434,30]
[404847545,1770618646885,-1287.765,0.00043401,2]
[404847546,1770618646894,-150.0,0.00043401,2]
[404847547,1770618646904,-918.0,0.00043401,2]
[404847548,1770618646914,-1215.019,0.00043401,2]
[404847549,1770618646924,-187.0,0.00043435,15]
[404847550,1770618646933,-840.0,0.00043444,16]
[404847551,1770618646942,-161.0,0.00043448,16]
[404847552,1770618646951,-504.13704332,0.0004345,30]
[404847553,1770618646961,-500.0,0.0004345,60]
[404847554,1770618646972,-300.0,0.00043485,30]
[404847555,1770618646982,-300.0,0.00043485,30]
[404847556,1770618646993,-39231.0,0.00043486,30]
[404847557,1770618647003,-151.0,0.00043486,60]
[404847558,1770618647014,-151.0,0.00043486,60]
[404847559,1770618647024,-221.0,0.00043493,2]
[404847560,1770618647033,-91830.93027101,0.000435,120]
[404847561,1770618647049,-153.0,0.000435,120]
[404847562,1770618647058,-151.0,0.000435,120]
[404847563,1770618647068,-151.0,0.000435,120]
[404847564,1770618647077,-151.0,0.000435,120]
[404847565,1770618647087,-151.0,0.000435,120]
[404847566,1770618647095,-151.0,0.000435,120]
[404847567,1770618647104,-151.0,0.000435,120]
[404847568,1770618647114,-151.0,0.000435,31]
[404847569,1770618647123,-161.794142,0.000435,31]
[404847570,1770618647133,-177.909811,0.000435,7]
[404847571,1770618647142,-177.909811,0.000435,7]
[404847572,1770618647151,-177.909811,0.000435,7]
[404847573,1770618647161,-177.909811,0.000435,7]
[404847574,1770618647170,-151.0,0.000435,120]
[404847575,1770618647179,-1079.4,0.00043537,120]
[404847576,1770618647189,-150.0,0.00043566,30]
[404847577,1770618647198,-150.0,0.00043566,30]
[404847578,1770618647208,-150.0,0.00043566,30]
[404847579,1770618647219,-168.0,0.00043577,2]
[404847580,1770618647233,-183.04,0.00043595,2]
[404847581,1770618647243,-211.45756918,0.000436,120]
[404847582,1770618647253,-150.0,0.00043617,60]
[404847583,1770618647263,-500.0,0.00043617,60]
[404847584,1770618647273,-500.0,0.00043617,2]
[404847585,1770618647283,-200.0,0.00043617,60]
[404847586,1770618647297,-150.0,0.00043617,60]
[404847587,1770618647307,-150.22268464,0.00043617,60]
[404847588,1770618647316,-150.57884528,0.00043617,60]
[404847589,1770618647326,-221.0,0.00043653,2]
[404847590,1770618647336,-500.0,0.00043672,60]
[404847591,1770618647346,-500.0,0.00043672,2]
[404847592,1770618647356,-150.0,0.00043672,60]
[404847593,1770618647366,-1041.97750413,0.0004369,120]
[404847594,1770618647375,-1454.99,0.000437,90]
[404847595,1770618647538,-619.37,0.000437,90]
[404847596,1770618647550,-316.68272132,0.000437,120]
[404847597,1770618647560,-30799.25658524,0.000437,120]
[404847598,1770618647570,-150.0,0.00043714,30]
[404847599,1770618647579,-150.0,0.00043714,30]
[404847600,1770618647589,-371.20074059,0.00043726,7]
[404847601,1770618647598,-500.0,0.00043727,60]
[404847602,1770618647607,-309.390678,0.00043727,2]
[404847603,1770618647617,-150.0,0.00043727,60]
[404847604,1770618647628,-1079.4,0.0004373,120]
[404847605,1770618647638,-168.0,0.00043734,2]
[404847606,1770618647647,-300.0,0.00043735,30]
[404847607,1770618647656,-300.0,0.00043735,30]
[404847608,1770618647667,-117893.5730148,0.00043736,2]
[404847609,1770618647676,-173.2883026,0.00043736,2]
[404847610,1770618647686,-151.0,0.00043736,120]
[404847611,1770618647695,-219.113498,0.00043736,120]
[404847612,1770618647705,-151.0,0.00043736,60]
[404847613,1770618647715,-151.0,0.00043736,60]
[404847614,1770618647724,-150.0,0.00043744,30]
[404847615,1770618647734,-10819.21830258,0.0004375,120]
[404847616,1770618647744,-1336.0,0.00043761,2]
[404847617,1770618647755,-1412.0,0.00043761,2]
[404847618,1770618647764,-2448.0,0.00043761,2]
[404847619,1770618647775,-838.0,0.00043768,16]
[404847620,1770618647787,-533.16956705,0.0004377,120]
[404847621,1770618647797,-300.0,0.00043772,30]
[404847622,1770618647807,-300.0,0.00043772,30]
[404847623,1770618647817,-615.91139746,0.00043773,8]
[404847624,1770618647826,-500.0,0.00043773,10]
[404847625,1770618647835,-160.36847947,0.00043773,10]
[404847626,1770618647847,-500.0,0.00043773,3]
[404847627,1770618647856,-500.0,0.00043773,10]
[404847628,1770618647866,-500.0,0.00043773,10]
[404847629,1770618647875,-500.0,0.00043773,10]
[404847630,1770618647884,-500.0,0.00043773,10]
[404847631,1770618647893,-496.94502749,0.00043773,10]
[404847632,1770618647903,-500.0,0.00043773,10]
[404847633,1770618647912,-500.0,0.00043773,10]
[404847634,1770618647922,-500.0,0.00043773,10]
[404847635,1770618647931,-500.0,0.00043773,10]
[404847636,1770618647940,-500.0,0.00043773,10]
[404847637,1770618647950,-500.0,0.00043773,10]
[404847638,1770618647960,-500.0,0.00043773,10]
[404847639,1770618647971,-173.76847613,0.00043773,10]
[404847640,1770618647981,-502.87119241,0.00043773,10]
[404847641,1770618647991,-500.0,0.00043773,10]
[404847642,1770618648001,-500.0,0.00043773,10]
[404847643,1770618648012,-465.61183787,0.00043773,10]
[404847644,1770618648021,-500.0,0.00043773,10]
[404847645,1770618648030,-600.05504452,0.00043773,10]
[404847646,1770618648041,-500.0,0.00043773,10]
[404847647,1770618648050,-377.30350255,0.00043773,10]
[404847648,1770618648060,-500.0,0.00043773,10]
[404847649,1770618648070,-208.68091653,0.00043773,10]
[404847651,1770618648079,-500.0,0.00043773,10]
[404847654,1770618648088,-500.0,0.00043773,10]
[404847656,1770618648098,-500.0,0.00043773,10]
[404847658,1770618648107,-350.45334001,0.00043773,10]
[404847660,1770618648116,-502.47211663,0.00043773,10]
[404847661,1770618648125,-334.07299723,0.00043773,10]
[404847663,1770618648135,-500.0,0.00043773,10]
[404847666,1770618648144,-500.0,0.00043773,10]
[404847667,1770618648154,-500.0,0.00043773,10]
[404847669,1770618648163,-500.0,0.00043773,10]
[404847672,1770618648174,-500.0,0.00043773,10]
[404847673,1770618648183,-500.0,0.00043773,10]
[404847674,1770618648192,-500.0,0.00043773,10]
[404847675,1770618648201,-500.0,0.00043773,10]
[404847676,1770618648211,-500.0,0.00043773,10]
[404847677,1770618648220,-277.70929014,0.00043773,10]
[404847678,1770618648234,-500.0,0.00043773,10]
[404847679,1770618648244,-500.0,0.00043773,10]
[404847680,1770618648253,-500.0,0.00043773,10]
[404847681,1770618648262,-502.76217536,0.00043773,10]
[404847682,1770618648273,-500.0,0.00043773,10]
[404847683,1770618648282,-500.0,0.00043773,7]
[404847684,1770618648293,-500.0,0.00043773,10]
[404847685,1770618648303,-500.0,0.00043773,10]
[404847686,1770618648313,-500.0,0.00043773,10]
[404847687,1770618648322,-500.0,0.00043773,10]
[404847688,1770618648331,-500.0,0.00043773,10]
[404847689,1770618648340,-500.0,0.00043773,5]
[404847690,1770618648350,-472.16943484,0.00043773,10]
[404847691,1770618648360,-500.0,0.00043773,10]
[404847692,1770618648369,-500.0,0.00043773,10]
[404847693,1770618648379,-436.35483814,0.00043781,60]
[404847694,1770618648389,-187.62081611,0.00043781,60]
[404847695,1770618648398,-39200.74341476,0.000438,120]
[404847696,1770618648407,-237.39446606,0.000438,120]
[404847697,1770618648417,-164.0,0.00043803,16]
[404847698,1770618648427,-164.0,0.00043808,16]
[404847699,1770618648436,-166.0,0.00043809,16]
[404847700,1770618648446,-1999.0,0.00043835,120]
[404847701,1770618648455,-4000.0,0.00043836,10]
[404847702,1770618648465,-150.0,0.00043899,30]
[404847703,1770618648475,-150.0,0.00043899,30]
[404847704,1770618648484,-150.0,0.00043922,30]
[404847705,1770618648494,-300.0,0.00043928,30]
[404847706,1770618648504,-39231.0,0.00043929,30]
[404847707,1770618648513,-920.82030181,0.00043946,120]
[404847708,1770618648523,-417.14321601,0.00043949,30]
[404847709,1770618648532,-18259.56561201,0.0004395,120]
[404847710,1770618648543,-7921.1928045,0.0004398,120]
[404847711,1770618648553,-1089.27412783,0.00043987,120]
[404847712,1770618648563,-151.0,0.00043999,120]
[404847713,1770618648572,-151.0,0.00043999,60]
[404847714,1770618648582,-151.0,0.00043999,60]
[404847715,1770618648591,-934.06992202,0.00043999,7]
[404847716,1770618648601,-3959.30089068,0.00043999,7]
[404847717,1770618648612,-80000.0,0.00044,120]
[404847718,1770618648621,-324.0,0.00044,60]
[404847719,1770618648630,-152.32156984,0.00044,30]
[404847720,1770618648640,-151.0,0.00044,30]
[404847721,1770618648657,-8408.13,0.00044,2]
[404847722,1770618648667,-247.31803698,0.00044,120]
[404847723,1770618648676,-13726.50808153,0.00044,4]
[404847724,1770618648686,-58726.71863823,0.00044,10]
[404847725,1770618648707,-57750.55063087,0.00044,10]
[404847726,1770618648718,-51207.7307309,0.00044,10]
[404847727,1770618648727,-150.0,0.0004401,30]
[404847728,1770618648737,-150.0,0.0004401,30]
[404847729,1770618648746,-840.0,0.0004409,16]
[404847730,1770618648756,-1000.0,0.00044099,120]
[404847731,1770618648765,-150.0,0.00044099,30]
[404847732,1770618648774,-726.24228816,0.000441,30]
[404847733,1770618648784,-500.0,0.00044109,120]
[404847734,1770618648794,-500.0,0.00044109,120]
[404847735,1770618648803,-500.0,0.00044109,120]
[404847736,1770618648812,-500.0,0.00044109,120]
[404847737,1770618648821,-500.0,0.00044109,120]
[404847738,1770618648831,-500.0,0.00044109,120]
[404847739,1770618648840,-500.0,0.00044109,120]
[404847740,1770618648849,-500.0,0.00044109,120]
[404847741,1770618648858,-500.0,0.00044109,120]
[404847742,1770618648867,-500.0,0.00044109,120]
[404847743,1770618648877,-500.0,0.00044109,120]
[404847744,1770618648886,-500.0,0.00044109,120]
[404847745,1770618648896,-500.0,0.00044109,120]
[404847746,1770618648905,-500.0,0.00044109,120]
[404847747,1770618648915,-500.0,0.00044109,120]
[404847748,1770618648924,-500.0,0.00044109,120]
[404847749,1770618648933,-500.0,0.00044109,120]
[404847750,1770618648943,-500.0,0.00044109,120]
[404847751,1770618648952,-500.0,0.00044109,120]
[404847752,1770618648961,-500.0,0.00044109,120]
[404847753,1770618648971,-500.0,0.00044109,120]
[404847754,1770618648980,-500.0,0.00044109,120]
[404847755,1770618648989,-500.0,0.00044109,120]
[404847756,1770618648999,-316.02714742,0.00044109,120]
[404847757,1770618649009,-200.99075757,0.00044109,120]
[404847758,1770618649018,-168.0,0.00044153,2]
[404847759,1770618649027,-153.0,0.00044154,14]
[404847760,1770618649036,-153.0,0.00044154,14]
[404847761,1770618649046,-285.57006957,0.00044154,14]
[404847762,1770618649055,-222.0,0.00044195,2]
[404847763,1770618649064,-1449.97607698,0.000442,90]
[404847764,1770618649074,-2000.0,0.000442,2]
[404847765,1770618649084,-151.0,0.000442,60]
[404847766,1770618649094,-201.07511,0.000442,120]
[404847767,1770618649103,-201.07511,0.000442,120]
[404847768,1770618649112,-221.0,0.00044211,7]
[404847769,1770618649121,-168.0,0.0004423,7]
[404847770,1770618649130,-3409.23025173,0.00044244,2]
[404847771,1770618649139,-168.0,0.00044255,2]
[404847772,1770618649148,-1003.81694944,0.00044256,15]
[404847773,1770618649157,-237.52375325,0.00044256,120]
[404847774,1770618649166,-200.0,0.00044265,2]
[404847775,1770618649175,-150.0,0.00044273,7]
[404847776,1770618649184,-150.0,0.00044273,10]
[404847777,1770618649193,-150.0,0.00044277,30]
[404847778,1770618649202,-164.7,0.000443,60]
[404847779,1770618649211,-221.0,0.00044302,120]
[404847780,1770618649221,-1000.0,0.00044321,10]
[404847781,1770618649234,-1000.0,0.00044321,3]
[404847782,1770618649243,-502.41623869,0.00044321,10]
[404847783,1770618649252,-1000.0,0.00044321,10]
[404847784,1770618649261,-504.10889076,0.00044321,10]
[404847785,1770618649271,-1000.0,0.00044321,10]
[404847786,1770618649280,-295.30603948,0.00044321,10]
[404847787,1770618649290,-1000.0,0.00044321,10]
[404847788,1770618649301,-1000.0,0.00044321,10]
[404847789,1770618649310,-1006.13163401,0.00044321,10]
[404847790,1770618649319,-502.60120768,0.00044321,10]
[404847791,1770618649329,-1000.0,0.00044321,10]
[404847792,1770618649339,-1000.0,0.00044321,10]
[404847793,1770618649348,-199.03910097,0.00044321,10]
[404847794,1770618649358,-203.06379961,0.00044321,10]
[404847795,1770618649368,-1000.0,0.00044321,10]
[404847796,1770618649378,-1000.0,0.00044321,10]
[404847797,1770618649387,-1000.0,0.00044321,10]
[404847798,1770618649397,-839.29096612,0.00044321,10]
[404847799,1770618649406,-1002.46536449,0.00044321,10]
[404847800,1770618649416,-989.54842128,0.00044321,10]
[404847801,1770618649425,-1000.0,0.00044321,10]
[404847802,1770618649435,-502.20409779,0.00044321,10]
[404847803,1770618649444,-1002.56444906,0.00044321,10]
[404847804,1770618649454,-503.1173232,0.00044321,10]
[404847805,1770618649463,-1000.0,0.00044321,10]
[404847806,1770618649472,-502.42442839,0.00044321,10]
[404847807,1770618649482,-1000.0,0.00044321,10]
[404847808,1770618649491,-501.70090979,0.00044321,10]
[404847809,1770618649500,-503.00457019,0.00044321,10]
[404847810,1770618649510,-1000.0,0.00044321,10]
[404847811,1770618649519,-1000.0,0.00044321,10]
[404847812,1770618649528,-1002.73930128,0.00044321,10]
[404847813,1770618649538,-1000.0,0.00044321,10]
[404847814,1770618649547,-1000.0,0.00044321,7]
[404847815,1770618649556,-395.286218,0.00044321,10]
[404847816,1770618649566,-1000.0,0.00044321,10]
[404847817,1770618649575,-373.10505378,0.00044321,10]
[404847818,1770618649585,-501.44969671,0.00044321,10]
[404847819,1770618649594,-503.43719305,0.00044321,10]
[404847820,1770618649603,-502.0208216,0.00044321,5]
[404847821,1770618649613,-1061.2285323,0.00044321,10]
[404847822,1770618649624,-502.48741402,0.00044321,10]
[404847823,1770618649635,-716.30227174,0.0004433,2]
[404847824,1770618649646,-181.21372751,0.0004433,19]
[404847825,1770618649657,-158.41978573,0.00044344,15]
[404847826,1770618649667,-2056.28695353,0.00044344,2]
[404847827,1770618649677,-1433.94378736,0.00044344,28]
[404847828,1770618649687,-13901.37503382,0.00044353,15]
[404847829,1770618649705,-270.00005,0.00044353,15]
[404847830,1770618649717,-1074.18468923,0.00044353,15]
[404847831,1770618649730,-253.24101467,0.00044353,15]
[404847832,1770618649739,-265.16908496,0.00044355,60]
[404847833,1770618649781,-751.66775334,0.000435,120]
[404847834,1770618649794,-587.58212266,0.000435,120]
[404847835,1770618649803,-739.07924888,0.00044355,60]
[404847836,1770618649813,-1004.24833384,0.00044355,60]
[404847837,1770618649865,-1004.24833384,0.00044355,60]
[404847838,1770618649875,-1200.80286714,0.00044355,60]
[404847839,1770618649885,-500.0,0.00044356,120]
[404847840,1770618649896,-182.35346532,0.00044356,120]
[404847841,1770618649907,-503.49449505,0.00044356,90]
[404847842,1770618649917,-501.63748011,0.00044356,120]
[404847843,1770618649927,-500.0,0.00044356,120]
[404847844,1770618649937,-176.1819659,0.00044356,120]
[404847845,1770618649947,-500.0,0.00044356,120]
[404847846,1770618649957,-500.0,0.00044356,120]
[404847847,1770618649967,-500.0,0.00044356,120]
[404847848,1770618649976,-510.0305959,0.00044356,120]
[404847849,1770618649986,-500.0,0.00044356,120]
[404847850,1770618649996,-500.0,0.00044356,120]
[404847851,1770618650006,-510.41077862,0.00044356,120]
[404847852,1770618650018,-1301.20561,0.00044356,120]
[404847853,1770618650028,-338.626055,0.00044356,120]
[404847854,1770618650039,-500.0,0.00044356,120]
[404847855,1770618650049,-500.0,0.00044356,120]
[404847856,1770618650058,-506.24026905,0.00044356,120]
[404847857,1770618650067,-508.12653318,0.00044356,120]
[404847858,1770618650077,-500.0,0.00044356,120]
[404847859,1770618650087,-500.0,0.00044356,120]
[404847860,1770618650096,-500.0,0.00044356,120]
[404847861,1770618650108,-524.0803242,0.00044356,120]
[404847862,1770618650119,-500.0,0.00044356,120]
[404847863,1770618650128,-500.0,0.00044356,120]
[404847864,1770618650138,-500.0,0.00044356,120]
[404847865,1770618650148,-524.45792599,0.00044356,120]
[404847866,1770618650157,-500.0,0.00044356,120]
[404847867,1770618650167,-500.0,0.00044356,120]
[404847868,1770618650176,-500.0,0.00044356,120]
[404847869,1770618650187,-500.0,0.00044356,120]
[404847870,1770618650197,-530.56068766,0.00044356,120]
[404847871,1770618650207,-500.0,0.00044356,120]
[404847872,1770618650217,-500.0,0.00044356,120]
[404847873,1770618650229,-500.0,0.00044356,120]
[404847874,1770618650239,-500.0,0.00044356,120]
[404847875,1770618650250,-536.05783368,0.00044356,120]
[404847876,1770618650260,-602.0968838,0.00044356,120]
[404847877,1770618650272,-500.0,0.00044356,120]
[404847878,1770618650282,-500.0,0.00044356,120]
[404847879,1770618650293,-500.0,0.00044356,120]
[404847880,1770618650302,-500.0,0.00044356,120]
[404847881,1770618650313,-519.96757824,0.00044356,120]
[404847882,1770618650323,-504.97646341,0.00044356,120]
[404847883,1770618650334,-500.0,0.00044356,120]
[404847884,1770618650343,-500.0,0.00044356,120]
[404847885,1770618650352,-500.0,0.00044356,120]
[404847886,1770618650361,-507.42484371,0.00044356,120]
[404847887,1770618650370,-500.0,0.00044356,120]
[404847888,1770618650379,-506.90029324,0.00044356,120]
[404847889,1770618650388,-500.0,0.00044356,120]
[404847890,1770618650398,-500.0,0.00044356,120]
[404847891,1770618650408,-500.0,0.00044356,120]
[404847892,1770618650419,-500.0,0.00044356,120]
[404847893,1770618650428,-500.0,0.00044356,120]
[404847894,1770618650438,-500.0,0.00044356,120]
[404847895,1770618650448,-500.0,0.00044356,120]
[404847896,1770618650459,-500.0,0.00044356,120]
[404847897,1770618650470,-273.27351984,0.00044356,120]
[404847898,1770618650479,-500.0,0.00044356,120]
[404847899,1770618650488,-553.20345425,0.00044356,120]
[404847900,1770618650497,-500.0,0.00044356,120]
[404847901,1770618650507,-500.0,0.00044356,120]
[404847902,1770618650515,-500.0,0.00044356,120]
[404847903,1770618650524,-500.0,0.00044356,120]
[404847904,1770618650534,-500.0,0.00044356,120]
[404847905,1770618650544,-509.91523978,0.00044356,120]
[404847906,1770618650554,-500.0,0.00044356,120]
[404847907,1770618650563,-500.0,0.00044356,120]
[404847908,1770618650572,-500.0,0.00044356,120]
[404847909,1770618650582,-500.0,0.00044356,120]
[404847910,1770618650592,-500.0,0.00044356,120]
[404847911,1770618650601,-500.0,0.00044356,120]
[404847912,1770618650610,-462.14039138,0.00044356,120]
[404847913,1770618650620,-519.06138475,0.00044356,120]
[404847914,1770618650630,-500.0,0.00044356,120]
[404847915,1770618650639,-500.0,0.00044356,120]
[404847916,1770618650649,-500.0,0.00044356,120]
[404847917,1770618650658,-500.0,0.00044356,120]
[404847918,1770618650667,-500.0,0.00044356,120]
[404847919,1770618650676,-500.0,0.00044356,120]
[404847920,1770618650685,-500.0,0.00044356,120]
[404847921,1770618650695,-500.0,0.00044356,120]
[404847922,1770618650704,-511.76277143,0.00044356,120]
[404847923,1770618650713,-500.0,0.00044356,120]
[404847924,1770618650722,-564.05625604,0.00044356,120]
[404847925,1770618650732,-512.27763748,0.00044356,120]
[404847926,1770618650741,-500.0,0.00044356,120]
[404847927,1770618650751,-500.0,0.00044356,120]
[404847928,1770618650760,-500.0,0.00044356,120]
[404847929,1770618650769,-500.0,0.00044356,120]
[404847930,1770618650779,-500.0,0.00044356,120]
[404847931,1770618650789,-500.0,0.00044356,120]
[404847932,1770618650798,-500.0,0.00044356,120]
[404847933,1770618650807,-500.0,0.00044356,120]
[404847934,1770618650816,-500.0,0.00044356,120]
[404847935,1770618650825,-549.69745871,0.00044356,120]
[404847936,1770618650835,-519.76612768,0.00044356,120]
[404847937,1770618650846,-516.25932716,0.00044356,120]
[404847938,1770618650855,-514.93694926,0.00044356,120]
[404847939,1770618650866,-500.0,0.00044356,120]
[404847940,1770618650876,-508.85839577,0.00044356,120]
[404847941,1770618650886,-505.26682605,0.00044356,120]
[404847942,1770618650896,-500.0,0.00044356,120]
[404847943,1770618650906,-500.0,0.00044356,120]
[404847944,1770618650915,-500.0,0.00044356,120]
[404847945,1770618650924,-500.0,0.00044356,120]
[404847946,1770618650933,-500.0,0.00044356,120]
[404847947,1770618650943,-500.0,0.00044356,120]
[404847948,1770618650952,-500.0,0.00044356,120]
[404847949,1770618650962,-180.2683889,0.00044356,120]
[404847950,1770618650972,-508.32893926,0.00044356,120]
[404847951,1770618650983,-500.0,0.00044356,120]
[404847952,1770618650994,-500.0,0.00044356,120]
[404847953,1770618651004,-500.0,0.00044356,120]
[404847954,1770618651013,-500.0,0.00044356,120]
[404847955,1770618651023,-535.60229723,0.00044356,120]
[404847956,1770618651032,-500.0,0.00044356,120]
[404847957,1770618651042,-168.73,0.00044356,120]
[404847958,1770618651051,-500.0,0.00044356,120]
[404847959,1770618651060,-500.0,0.00044356,120]
[404847960,1770618651069,-521.04084889,0.00044356,120]
[404847961,1770618651079,-454.33614935,0.00044356,120]
[404847962,1770618651088,-500.0,0.00044356,120]
[404847963,1770618651097,-500.0,0.00044356,120]
[404847964,1770618651107,-500.0,0.00044356,120]
[404847965,1770618651116,-500.0,0.00044356,120]
[404847966,1770618651125,-534.31582164,0.00044356,120]
[404847967,1770618651134,-500.0,0.00044356,120]
[404847968,1770618651143,-500.0,0.00044356,120]
[404847969,1770618651153,-534.8958031,0.00044356,120]
[404847970,1770618651161,-206.13951993,0.00044356,120]
[404847971,1770618651170,-500.0,0.00044356,120]
[404847972,1770618651180,-500.0,0.00044356,120]
[404847973,1770618651189,-510.54308259,0.00044356,120]
[404847974,1770618651198,-515.38407174,0.00044356,120]
[404847975,1770618651208,-550.67618915,0.00044356,120]
[404847976,1770618651217,-500.0,0.00044356,120]
[404847977,1770618651228,-500.0,0.00044356,120]
[404847978,1770618651240,-500.0,0.00044356,120]
[404847979,1770618651250,-500.0,0.00044356,120]
[404847980,1770618651261,-500.0,0.00044356,120]
[404847981,1770618651274,-500.0,0.00044356,120]
[404847982,1770618651283,-523.60155793,0.00044356,120]
[404847983,1770618651293,-500.0,0.00044356,120]
[404847984,1770618651304,-500.0,0.00044356,120]
[404847985,1770618651314,-500.0,0.00044356,120]
[404847986,1770618651324,-516.19930323,0.00044356,120]
[404847987,1770618651333,-500.0,0.00044356,120]
[404847988,1770618651343,-500.0,0.00044356,120]
[404847989,1770618651352,-500.0,0.00044356,120]
[404847990,1770618651361,-500.0,0.00044356,120]
[404847991,1770618651371,-535.45278819,0.00044356,120]
[404847992,1770618651380,-500.0,0.00044356,120]
[404847993,1770618651390,-517.19773297,0.00044356,120]
[404847994,1770618651399,-510.02722742,0.00044356,120]
[404847995,1770618651410,-623.15,0.00044356,120]
[404847996,1770618651419,-623.15,0.00044356,120]
[404847997,1770618651428,-623.15,0.00044356,120]
[404847998,1770618651437,-623.15,0.00044356,120]
[404847999,1770618651447,-623.15,0.00044356,120]
[404848000,1770618651455,-623.15,0.00044356,120]
[404848001,1770618651465,-623.15,0.00044356,120]
[404848002,1770618651474,-623.15,0.00044356,120]
[404848003,1770618651483,-457.05211741,0.00044356,120]